bitfinex/quotes_SOLUSD_20241024
["timestamp","ask_amount","ask_price","bid_price","bid_amount"]
[1729779702637,3.3712501,174.63,174.6,56.727772]
[1729779703428,56.727772,174.62,174.57,72.296172]
[1729779703630,60.0990221,174.61,174.57,15.5684]
[1729779703809,56.727772,174.61,174.57,15.5684]
[1729779704011,56.727772,174.59,174.54,56.727772]
[1729779704419,62.455172,174.6,174.55,56.727772]
[1729779704737,56.727772,174.61,174.56,56.727772]
[1729779704928,3.3706957,174.6,174.57,56.727772]
[1729779705128,0.25098,174.61,174.57,56.727772]
[1729779705311,3.37048764,174.6,174.57,56.727772]
[1729779705509,0.25098,174.61,174.57,56.727772]
[1729779705827,9.0972064,174.6,174.56,56.727772]
[1729779706131,5.7274,174.6,174.56,56.727772]
[1729779706519,5.97808,174.61,174.56,56.727772]
[1729779706720,0.12549,174.65,174.6,56.727772]
[1729779706922,3.37025849,174.64,174.6,56.727772]
[1729779707233,3.37025849,174.64,174.62,56.727772]
[1729779707410,5.725,174.67,174.63,56.727772]
[1729779707611,3.37005983,174.66,174.63,56.727772]
[1729779707814,3.37005983,174.65,174.63,56.727772]
[1729779708015,3.37005983,174.64,174.63,56.727772]
[1729779708215,3.37005983,174.66,174.63,56.727772]
[1729779708435,3.37005983,174.65,174.62,56.727772]
[1729779708630,62.452272,174.69,174.64,56.727772]
[1729779708833,3.37085046,174.68,174.66,56.727772]
[1729779709034,5.724,174.71,174.67,56.727772]
[1729779709342,3.3743542,174.7,174.67,56.727772]
[1729779709544,3.3743542,174.69,174.67,56.727772]
[1729779709841,3.3743542,174.68,174.67,56.727772]
[1729779710341,3.3743542,174.7,174.67,56.727772]
[1729779710523,5.724,174.71,174.67,56.727772]
[1729779710524,3.3743542,174.69,174.67,56.727772]
[1729779710841,3.3743542,174.68,174.67,56.727772]
[1729779711149,3.3743542,174.7,174.67,56.727772]
[1729779711443,3.3743542,174.69,174.67,56.727772]
[1729779711637,3.3743542,174.68,174.67,56.727772]
[1729779711821,3.3743542,174.7,174.67,56.727772]
[1729779712138,3.3743542,174.69,174.68,56.727772]
[1729779712438,3.3743542,174.71,174.67,56.727772]
[1729779712642,3.3743542,174.7,174.66,56.727772]
[1729779712944,3.3743542,174.69,174.66,56.727772]
[1729779713132,62.451672,174.71,174.66,56.727772]
[1729779713133,3.37693377,174.68,174.66,56.727772]
[1729779713340,5.7239,174.71,174.67,56.727772]
[1729779713517,3.3763528,174.7,174.67,56.727772]
[1729779713722,3.3763528,174.69,174.67,56.727772]
[1729779713934,3.3763528,174.68,174.67,56.727772]
[1729779714139,3.3763528,174.68,174.65,56.727772]
[1729779714342,3.3763528,174.67,174.64,56.727772]
[1729779714534,3.3763528,174.66,174.64,56.727772]
[1729779714743,0.12549,174.7,174.65,56.727772]
[1729779715043,3.37557362,174.69,174.65,56.727772]
[1729779715232,3.37557362,174.68,174.63,0.1]
[1729779715547,5.7227,174.74,174.63,0.1]
[1729779715718,3.3752034,174.73,174.7,56.727772]
[1729779715922,3.3752034,174.72,174.71,56.727772]
[1729779716534,5.7214,174.78,174.71,56.727772]
[1729779716743,3.37394564,174.72,174.7,15.7778]
[1729779716930,3.37394564,174.71,174.7,15.7778]
[1729779717262,5.7214,174.78,174.7,15.7778]
[1729779717540,0.25098,174.77,174.7,15.7778]
[1729779717845,16.64774698,174.84,174.7,15.7778]
[1729779717846,3.37267648,174.76,174.71,20.0]
[1729779718029,6.6229,174.89,174.75,20.0]
[1729779718030,5.7191,174.86,174.75,20.0]
[1729779718239,7.58779292,174.85,174.75,20.0]
[1729779718431,3.37086931,174.84,174.75,20.0]
[1729779718633,3.37086931,174.83,174.77,20.0]
[1729779718843,3.37086931,174.82,174.77,20.0]
[1729779719043,0.12549,174.87,174.81,56.727772]
[1729779719254,3.36944237,174.86,174.82,56.727772]
[1729779719476,3.36944237,174.85,174.83,56.727772]
[1729779719753,5.7176,174.9,174.84,56.727772]
[1729779719954,5.7176,174.9,174.83,6.5364]
[1729779720137,3.3704241,174.89,174.83,6.5364]
[1729779720329,3.3704241,174.88,174.83,6.5364]
[1729779720536,56.727772,174.86,174.81,56.727772]
[1729779720736,3.3704241,174.85,174.81,56.727772]
[1729779721047,3.3704241,174.84,174.81,56.727772]
[1729779721228,56.727772,174.89,174.83,56.727772]
[1729779721428,0.25098,174.87,174.84,56.727772]
[1729779721647,3.36682139,174.86,174.84,56.727772]
[1729779721842,3.36682139,174.86,174.85,56.727772]
[1729779722428,56.727772,174.88,174.83,56.727772]
[1729779722626,60.09036663,174.87,174.81,56.727772]
[1729779722830,60.09036663,174.86,174.81,56.727772]
[1729779723054,56.727772,174.87,174.81,56.727772]
[1729779723254,3.36083743,174.86,174.81,56.727772]
[1729779723454,3.36083743,174.86,174.78,6.199]
[1729779723455,62.447272,174.84,174.79,56.727772]
[1729779723635,56.978752,174.83,174.77,56.727772]
[1729779723835,5.7191,174.86,174.81,56.727772]
[1729779724155,0.25098,174.82,174.76,15.8286]
[1729779724353,56.727772,174.79,174.76,15.8286]
[1729779724538,56.727772,174.79,174.74,6.0837]
[1729779724539,56.727772,174.77,174.72,15.9009]
[1729779724849,56.727772,174.78,174.72,72.628672]
[1729779725438,5.7221,174.76,174.72,15.9009]
[1729779726248,56.727772,174.75,174.7,6.1869]
[1729779726662,56.727772,174.74,174.7,6.1869]
[1729779727164,56.727772,174.71,174.67,16.2994]
[1729779727459,62.452672,174.68,174.62,16.2994]
[1729779727645,62.452672,174.68,174.63,56.727772]
[1729779728153,0.25098,174.67,174.62,73.027172]
[1729779728367,56.727772,174.64,174.62,16.2994]
[1729779728649,56.978752,174.65,174.59,56.727772]
[1729779729236,56.727772,174.64,174.58,56.727772]
[1729779729841,62.704652,174.65,174.59,56.727772]
[1729779730642,0.25098,174.66,174.62,56.727772]
[1729779730843,56.727772,174.68,174.62,56.727772]
[1729779731058,56.727772,174.7,174.65,56.727772]
[1729779731239,5.7231,174.73,174.68,56.727772]
[1729779732042,62.450472,174.74,174.68,56.727772]
[1729779732264,56.727772,174.72,174.67,56.727772]
[1729779732476,56.727772,174.71,174.65,56.727772]
[1729779732765,56.727772,174.73,174.67,56.727772]
[1729779732963,56.727772,174.71,174.66,56.727772]
[1729779733167,56.727772,174.72,174.66,56.727772]
[1729779733369,56.727772,174.72,174.67,56.727772]
[1729779733370,0.12549,174.72,174.67,56.727772]
[1729779733555,56.978752,174.72,174.66,56.727772]
[1729779733752,0.12549,174.7,174.66,56.727772]
[1729779734067,62.577362,174.7,174.65,56.727772]
[1729779734849,5.84959,174.7,174.65,56.727772]
[1729779735350,0.12549,174.73,174.68,56.727772]
[1729779735567,56.727772,174.7,174.66,6.451]
[1729779735767,0.12549,174.69,174.66,6.451]
[1729779736066,56.853262,174.73,174.68,28.363886]
[1729779736275,56.853262,174.73,174.66,6.451]
[1729779736276,3.36724693,174.72,174.69,56.727772]
[1729779736446,62.576062,174.74,174.69,56.727772]
[1729779736447,5.7228,174.74,174.69,56.727772]
[1729779736643,3.36811906,174.73,174.71,56.727772]
[1729779736867,5.7221,174.76,174.71,56.727772]
[1729779737253,3.36862288,174.75,174.72,56.727772]
[1729779737448,3.36862288,174.74,174.72,56.727772]
[1729779737664,62.449572,174.77,174.72,56.727772]
[1729779737869,3.37144027,174.76,174.72,56.727772]
[1729779738070,3.37144027,174.75,174.71,56.727772]
[1729779738242,3.37144027,174.74,174.72,56.727772]
[1729779738451,5.7218,174.77,174.72,56.727772]
[1729779738763,3.37038973,174.76,174.72,56.727772]
[1729779738964,3.37038973,174.75,174.72,56.727772]
[1729779739159,3.37038973,174.74,174.71,56.727772]
[1729779739367,56.727772,174.72,174.67,15.9333]
[1729779739669,56.727772,174.69,174.64,56.727772]
[1729779739967,56.727772,174.69,174.63,56.727772]
[1729779740668,62.452272,174.69,174.63,56.727772]
[1729779740965,14.3071,174.74,174.62,22.3215]
[1729779740966,0.25098,174.71,174.66,56.727772]
[1729779741163,3.3697431,174.7,174.66,56.727772]
[1729779741369,0.25098,174.71,174.66,56.727772]
[1729779741565,3.37014317,174.7,174.66,56.727772]
[1729779741767,3.37014317,174.69,174.66,56.727772]
[1729779742059,5.97478,174.71,174.66,56.727772]
[1729779742273,3.36988765,174.7,174.66,56.727772]
[1729779742445,56.727772,174.68,174.62,79.049272]
[1729779743253,3.36990992,174.67,174.62,79.049272]
[1729779743469,56.727772,174.68,174.62,79.049272]
[1729779743975,56.727772,174.65,174.62,15.7202]
[1729779744271,56.727772,174.67,174.62,72.447972]
[1729779744473,5.85019,174.68,174.63,56.727772]
[1729779744474,62.452472,174.68,174.63,56.727772]
[1729779744652,62.452472,174.68,174.64,56.727772]
[1729779744653,3.37007737,174.67,174.64,56.727772]
[1729779744972,0.25098,174.68,174.63,56.727772]
[1729779745170,0.25098,174.68,174.64,56.727772]
[1729779745373,56.727772,174.72,174.66,56.727772]
[1729779745547,3.37061516,174.71,174.69,56.727772]
[1729779745867,12.7015,174.8,174.62,15.7202]
[1729779745868,5.7211,174.79,174.68,20.0]
[1729779746051,0.12549,174.77,174.68,20.0]
[1729779746251,3.37154374,174.76,174.68,20.0]
[1729779746772,3.37154374,174.75,174.71,56.727772]
[1729779747079,3.37154374,174.74,174.71,56.727772]
[1729779747273,3.37154374,174.73,174.71,56.727772]
[1729779747453,0.25098,174.75,174.71,56.727772]
[1729779747654,3.36702789,174.74,174.71,56.727772]
[1729779747883,0.25098,174.75,174.71,56.727772]
[1729779748176,3.36749604,174.74,174.71,56.727772]
[1729779748371,3.36749604,174.73,174.71,56.727772]
[1729779748556,0.25098,174.75,174.71,56.727772]
[1729779748757,3.36803108,174.74,174.71,56.727772]
[1729779748959,56.727772,174.72,174.67,63.034172]
[1729779749349,62.451172,174.73,174.67,63.034172]
[1729779749553,3.36868206,174.72,174.69,56.727772]
[1729779749766,5.7234,174.73,174.69,56.727772]
[1729779750071,3.36853921,174.72,174.68,56.727772]
[1729779750255,3.36853921,174.71,174.68,56.727772]
[1729779750578,56.978752,174.7,174.65,56.727772]
[1729779750782,3.36981033,174.69,174.65,56.727772]
[1729779750960,0.25098,174.7,174.66,56.727772]
[1729779751275,3.36993468,174.69,174.65,56.727772]
[1729779751455,0.25098,174.7,174.65,56.727772]
[1729779751661,56.727772,174.66,174.62,15.7202]
[1729779752171,5.7255,174.66,174.62,15.7202]
[1729779752368,62.453272,174.66,174.62,15.7202]
[1729779752573,56.727772,174.65,174.62,15.7202]
[1729779753163,62.453272,174.66,174.62,15.7202]
[1729779753381,3.37447544,174.65,174.62,15.7202]
[1729779753591,62.453272,174.66,174.62,15.7202]
[1729779753781,3.37442017,174.65,174.62,15.7202]
[1729779753982,62.453272,174.66,174.62,15.7202]
[1729779754171,3.37445244,174.65,174.62,15.7202]
[1729779754496,62.453272,174.66,174.62,15.7202]
[1729779754796,3.37361667,174.65,174.62,15.7202]
[1729779755003,80.755636,174.68,174.62,72.447972]
[1729779755183,3.37281264,174.67,174.64,56.727772]
[1729779755380,3.37281264,174.66,174.63,56.727772]
[1729779755578,56.727772,174.69,174.63,56.727772]
[1729779755794,3.37303183,174.68,174.63,56.727772]
[1729779755981,3.37303183,174.67,174.64,56.727772]
[1729779756296,62.452272,174.69,174.64,56.727772]
[1729779756977,3.37318756,174.68,174.64,56.727772]
[1729779757193,3.3734081,174.67,174.63,56.727772]
[1729779757689,62.452272,174.69,174.63,56.727772]
[1729779757888,3.37379783,174.68,174.64,56.727772]
[1729779758077,62.452272,174.69,174.64,56.727772]
[1729779758278,3.37359785,174.68,174.64,56.727772]
[1729779758603,5.7245,174.69,174.64,56.727772]
[1729779758779,3.37360361,174.68,174.64,56.727772]
[1729779759102,5.7245,174.69,174.65,56.727772]
[1729779759289,3.37574792,174.68,174.65,56.727772]
[1729779759478,62.452272,174.69,174.63,56.727772]
[1729779759798,3.37511024,174.68,174.63,56.727772]
[1729779759971,3.37511024,174.67,174.63,56.727772]
[1729779760177,62.452272,174.69,174.63,56.727772]
[1729779760475,3.3752273,174.68,174.64,56.727772]
[1729779760676,5.7245,174.69,174.64,56.727772]
[1729779760888,5.7245,174.69,174.62,15.7202]
[1729779760889,0.25098,174.66,174.62,15.7202]
[1729779761178,24.027864,174.66,174.62,15.7202]
[1729779761393,62.452272,174.69,174.63,56.727772]
[1729779761598,62.452272,174.69,174.62,15.7202]
[1729779761599,3.62595594,174.68,174.62,15.7202]
[1729779761813,0.12549,174.66,174.62,72.447972]
[1729779761985,56.853262,174.66,174.62,15.7202]
[1729779762699,62.578662,174.66,174.62,15.7202]
[1729779763008,0.12549,174.65,174.62,72.447972]
[1729779763378,0.12549,174.65,174.62,15.7202]
[1729779763578,56.853262,174.65,174.62,15.7202]
[1729779763980,0.12549,174.64,174.59,63.006072]
[1729779764397,0.12549,174.64,174.6,56.727772]
[1729779765797,0.12549,174.64,174.59,56.727772]
[1729779766402,0.12549,174.64,174.6,56.727772]
[1729779767382,5.85159,174.64,174.6,56.727772]
[1729779767580,0.12549,174.64,174.6,56.727772]
[1729779768385,3.38013385,174.63,174.61,56.727772]
[1729779768604,6.76028995,174.63,174.62,56.727772]
[1729779768794,3.38013385,174.63,174.62,56.727772]
[1729779771898,3.38013385,174.63,174.61,56.727772]
[1729779772104,80.881126,174.62,174.54,71.943572]
[1729779772282,56.727772,174.61,174.56,56.727772]
[1729779772481,3.38696448,174.6,174.59,56.727772]
[1729779772681,3.38696448,174.6,174.54,15.2158]
[1729779772905,3.38696448,174.59,174.54,15.2158]
[1729779773086,0.25098,174.62,174.54,15.2158]
[1729779773291,3.38795755,174.61,174.54,15.2158]
[1729779773493,3.38795755,174.6,174.54,15.2158]
[1729779773699,3.38795755,174.59,174.57,56.727772]
[1729779774006,56.978752,174.62,174.57,56.727772]
[1729779774181,3.38961923,174.61,174.57,56.727772]
[1729779774604,3.38961923,174.61,174.6,56.727772]
[1729779774902,3.38961923,174.61,174.6,76.727772]
[1729779775208,3.38961923,174.61,174.6,63.244472]
[1729779775509,3.38961923,174.61,174.57,56.727772]
[1729779775803,6.78080603,174.61,174.57,56.727772]
[1729779776007,6.78080603,174.61,174.59,56.727772]
[1729779776500,3.3911868,174.6,174.55,6.3219]
[1729779776700,3.38961923,174.61,174.59,56.727772]
[1729779776912,3.38961923,174.61,174.6,56.727772]
[1729779777213,3.39111577,174.61,174.6,56.727772]
[1729779777909,0.12549,174.66,174.6,56.727772]
[1729779778095,3.39014757,174.65,174.6,56.727772]
[1729779778405,3.39014757,174.64,174.62,56.727772]
[1729779778609,3.39014757,174.63,174.62,56.727772]
[1729779780201,0.25098,174.62,174.57,56.727772]
[1729779780403,3.39014757,174.61,174.57,56.727772]
[1729779780605,3.39014757,174.6,174.57,56.727772]
[1729779780799,3.39014757,174.59,174.58,56.727772]
[1729779781205,24.027864,174.64,174.58,56.727772]
[1729779781404,3.38728844,174.63,174.6,56.727772]
[1729779781720,3.38728844,174.62,174.6,56.727772]
[1729779782014,3.38728844,174.61,174.6,56.727772]
[1729779782218,3.38589471,174.61,174.59,56.727772]
[1729779782405,3.38589471,174.6,174.58,56.727772]
[1729779782589,5.97708,174.64,174.59,56.727772]
[1729779782789,3.38558339,174.63,174.59,56.727772]
[1729779782989,3.38558339,174.62,174.59,56.727772]
[1729779783198,3.38558339,174.61,174.56,20.0]
[1729779783403,23.902374,174.66,174.6,28.363886]
[1729779783611,3.38644885,174.65,174.62,56.727772]
[1729779783802,3.38644885,174.64,174.62,28.363886]
[1729779784008,3.38644885,174.63,174.61,56.727772]
[1729779784190,3.38644885,174.62,174.58,56.727772]
[1729779784520,3.38644885,174.61,174.58,56.727772]
[1729779784806,0.12549,174.66,174.6,56.727772]
[1729779785023,3.38628052,174.65,174.62,56.727772]
[1729779785188,3.38628052,174.64,174.62,56.727772]
[1729779785391,3.38628052,174.63,174.62,56.727772]
[1729779785589,3.38628052,174.63,174.6,56.727772]
[1729779785805,3.38654139,174.63,174.61,56.727772]
[1729779786013,3.38654139,174.62,174.61,56.727772]
[1729779787824,64.94207655,174.75,174.62,20.0]
[1729779788111,11.0097591,174.74,174.69,56.727772]
[1729779788298,4.23452273,174.73,174.69,35.40669904]
[1729779788496,0.12549,174.72,174.67,35.40669904]
[1729779788704,35.40669904,174.71,174.65,35.40669904]
[1729779788909,0.12549,174.7,174.65,35.40669904]
[1729779789109,24.153354,174.7,174.65,35.40669904]
[1729779789501,59.56005304,174.7,174.65,35.40669904]
[1729779789921,24.153354,174.7,174.65,35.40669904]
[1729779790219,5.7234,174.73,174.68,35.40669904]
[1729779790393,41.13009904,174.73,174.67,35.40669904]
[1729779790589,4.36155937,174.72,174.67,35.40669904]
[1729779790814,0.12549,174.72,174.67,35.40669904]
[1729779791014,0.12549,174.7,174.66,35.40669904]
[1729779791316,24.027864,174.71,174.67,35.40669904]
[1729779791516,24.027864,174.71,174.66,35.40669904]
[1729779791712,35.65767904,174.67,174.62,35.40669904]
[1729779791916,35.65767904,174.65,174.6,35.40669904]
[1729779792091,0.25098,174.65,174.6,35.40669904]
[1729779792297,0.25098,174.65,174.57,22.5033]
[1729779792298,35.53218904,174.64,174.58,35.40669904]
[1729779792504,0.12549,174.6,174.55,17.70334952]
[1729779792817,0.25098,174.59,174.55,35.40669904]
[1729779792990,0.25098,174.59,174.56,35.40669904]
[1729779793191,0.25098,174.59,174.57,35.40669904]
[1729779793920,0.25098,174.59,174.53,6.1132]
[1729779793921,0.25098,174.59,174.56,35.40669904]
[1729779794410,0.25098,174.59,174.56,56.73939944]
[1729779794712,0.25098,174.61,174.57,56.73939944]
[1729779795312,80.76726344,174.61,174.56,56.73939944]
[1729779795516,0.12549,174.6,174.56,56.73939944]
[1729779795897,0.12549,174.6,174.55,56.73939944]
[1729779796101,0.12549,174.58,174.53,62.85259944]
[1729779796302,56.73939944,174.55,174.5,56.73939944]
[1729779796521,80.64177344,174.57,174.51,56.73939944]
[1729779796692,0.12549,174.56,174.51,56.73939944]
[1729779797526,56.86488944,174.56,174.5,56.73939944]
[1729779797812,0.12549,174.56,174.52,56.73939944]
[1729779797995,0.12549,174.56,174.51,56.73939944]
[1729779798417,0.12549,174.57,174.53,56.73939944]
[1729779798596,56.73939944,174.61,174.56,56.73939944]
[1729779798791,6.4229,174.65,174.59,56.73939944]
[1729779798792,56.73939944,174.64,174.59,56.73939944]
[1729779799020,0.12549,174.63,174.59,56.73939944]
[1729779799207,0.12549,174.63,174.58,56.73939944]
[1729779799403,62.46569944,174.64,174.58,56.73939944]
[1729779799600,56.73939944,174.65,174.6,56.73939944]
[1729779799798,3.51048926,174.64,174.6,56.73939944]
[1729779799996,56.73939944,174.67,174.62,56.73939944]
[1729779800209,5.41604694,174.63,174.62,56.73939944]
[1729779800416,8.80107628,174.63,174.62,56.73939944]
[1729779801113,3.38502934,174.63,174.62,56.73939944]
[1729779802098,3.38502934,174.63,174.62,92.73849944]
[1729779802400,12.8809793,174.75,174.65,20.0]
[1729779802715,13.04563364,174.74,174.7,56.73939944]
[1729779802914,8.81016667,174.73,174.7,56.73939944]
[1729779803108,8.81016667,174.72,174.7,56.73939944]
[1729779803312,75.34277874,174.75,174.7,56.73939944]
[1729779803313,8.81016667,174.71,174.7,56.73939944]
[1729779803820,8.81016667,174.71,174.66,56.73939944]
[1729779804012,9.06114667,174.7,174.66,56.73939944]
[1729779804325,8.81016667,174.69,174.67,56.73939944]
[1729779804522,8.81016667,174.68,174.66,56.73939944]
[1729779804701,8.81016667,174.67,174.66,56.73939944]
[1729779805516,8.81016667,174.67,174.63,56.73939944]
[1729779805830,8.81016667,174.66,174.64,56.73939944]
[1729779805993,3.38852564,174.65,174.64,56.73939944]
[1729779806510,8.80667203,174.65,174.64,56.73939944]
[1729779807207,3.38598504,174.65,174.64,56.73939944]
[1729779807412,8.80356111,174.65,174.64,56.73939944]
[1729779808103,3.38598504,174.65,174.64,56.73939944]
[1729779808816,8.80378445,174.65,174.64,56.73939944]
[1729779808999,3.38598504,174.65,174.64,56.73939944]
[1729779809512,8.80345178,174.65,174.64,56.73939944]
[1729779809823,3.38598504,174.65,174.64,56.73939944]
[1729779809995,3.38598504,174.65,174.63,56.73939944]
[1729779810200,3.38598504,174.64,174.62,72.73849944]
[1729779810402,3.38598504,174.63,174.62,72.73849944]
[1729779810600,0.25098,174.67,174.62,72.73849944]
[1729779810825,3.38593392,174.63,174.62,72.73849944]
[1729779811825,3.38593392,174.63,174.62,15.9991]
[1729779812321,3.38593392,174.63,174.61,56.73939944]
[1729779812523,3.38593392,174.62,174.61,56.73939944]
[1729779813425,24.153354,174.71,174.61,56.73939944]
[1729779813622,24.153354,174.71,174.6,63.28169944]
[1729779813623,0.25098,174.69,174.65,56.73939944]
[1729779813803,8.80506437,174.68,174.65,56.73939944]
[1729779814124,8.80506437,174.67,174.65,56.73939944]
[1729779814307,5.41854784,174.66,174.65,56.73939944]
[1729779814622,8.80514024,174.66,174.65,56.73939944]
[1729779814926,3.3865924,174.66,174.65,72.38349944]
[1729779817125,0.25098,174.72,174.65,72.38349944]
[1729779817319,0.25098,174.72,174.68,56.73939944]
[1729779817527,0.25098,174.72,174.69,56.73939944]
[1729779817721,5.41498649,174.71,174.69,56.73939944]
[1729779817906,8.79935304,174.71,174.69,56.73939944]
[1729779818317,8.79935304,174.71,174.69,35.41052796]
[1729779818604,8.79935304,174.71,174.68,35.41052796]
[1729779818828,0.25098,174.72,174.68,35.41052796]
[1729779819327,0.12549,174.68,174.63,35.41052796]
[1729779819623,0.12549,174.67,174.63,35.41052796]
[1729779820229,8.79859033,174.66,174.63,35.41052796]
[1729779820413,8.79859033,174.65,174.63,56.69261142]
[1729779820612,3.3840732,174.65,174.63,56.69261142]
[1729779821142,0.12549,174.67,174.63,56.69261142]
[1729779821427,8.80483024,174.66,174.62,20.0]
[1729779821613,3.38644665,174.66,174.62,20.0]
[1729779822121,0.12549,174.73,174.62,20.1]
[1729779822327,8.81001282,174.72,174.62,20.1]
[1729779822639,8.81001282,174.71,174.62,20.0]
[1729779822821,8.81001282,174.7,174.67,56.69261142]
[1729779823130,8.81001282,174.69,174.68,56.69261142]
[1729779823342,8.81001282,174.69,174.67,56.69261142]
[1729779823628,8.81001282,174.68,174.67,56.69261142]
[1729779824514,8.81001282,174.68,174.66,56.69261142]
[1729779824711,8.81001282,174.67,174.64,56.69261142]
[1729779824911,62.41721142,174.69,174.63,56.69261142]
[1729779825120,65.75043786,174.68,174.63,56.69261142]
[1729779825318,8.80684644,174.67,174.63,56.69261142]
[1729779825628,0.25098,174.68,174.63,56.69261142]
[1729779825629,5.41863852,174.66,174.63,56.69261142]
[1729779825822,8.80528759,174.65,174.63,56.69261142]
[1729779826134,5.41863852,174.67,174.64,56.69261142]
[1729779826316,8.80560297,174.66,174.64,56.69261142]
[1729779826636,8.80560297,174.65,174.64,56.69261142]
[1729779826809,0.25098,174.68,174.64,56.69261142]
[1729779827019,8.80642368,174.65,174.64,56.69261142]
[1729779827335,3.38708603,174.65,174.64,76.69261142]
[1729779827939,3.38708603,174.65,174.64,56.69261142]
[1729779830642,3.38708603,174.65,174.63,56.69261142]
[1729779830826,3.38708603,174.64,174.63,56.69261142]
[1729779831630,3.38708603,174.64,174.62,56.69261142]
[1729779831942,0.25098,174.67,174.63,56.69261142]
[1729779832115,0.25098,174.65,174.61,56.69261142]
[1729779832320,56.69261142,174.63,174.58,56.69261142]
[1729779832617,8.80790604,174.62,174.58,56.69261142]
[1729779832917,3.38765617,174.61,174.58,56.69261142]
[1729779833116,3.38765617,174.6,174.58,56.69261142]
[1729779833316,56.81810142,174.64,174.58,56.69261142]
[1729779833317,3.38765617,174.59,174.58,56.69261142]
[1729779834938,0.12549,174.64,174.58,56.69261142]
[1729779835129,8.80844559,174.63,174.6,56.69261142]
[1729779835312,8.80844559,174.62,174.6,56.69261142]
[1729779835518,8.80844559,174.61,174.6,56.69261142]
[1729779835931,3.38786369,174.61,174.6,56.69261142]
[1729779836742,3.38786369,174.61,174.6,133.38522284]
[1729779837039,62.41631142,174.72,174.61,20.0]
[1729779837228,8.81421444,174.71,174.67,56.69261142]
[1729779837426,8.81421444,174.7,174.68,56.69261142]
[1729779837643,5.7229,174.74,174.69,56.69261142]
[1729779837939,13.05848563,174.73,174.7,56.69261142]
[1729779838250,8.81868585,174.72,174.7,56.69261142]
[1729779838432,3.39180225,174.71,174.69,56.69261142]
[1729779838745,3.39180225,174.7,174.65,16.2558]
[1729779838940,0.25098,174.73,174.69,56.69261142]
[1729779839142,3.39195341,174.72,174.69,56.69261142]
[1729779839343,56.69261142,174.75,174.71,56.69261142]
[1729779839344,5.7225,174.75,174.71,56.69261142]
[1729779839650,4.23884081,174.74,174.71,56.69261142]
[1729779839851,5.7225,174.75,174.71,56.69261142]
[1729779840030,7.62997569,174.74,174.71,56.69261142]
[1729779840225,3.39107265,174.73,174.69,56.69261142]
[1729779840545,62.41441142,174.77,174.71,56.69261142]
[1729779840736,13.35405735,174.76,174.71,56.69261142]
[1729779840937,3.39205964,174.75,174.72,56.69261142]
[1729779841138,3.39205964,174.74,174.72,56.69261142]
[1729779841339,3.39205964,174.73,174.72,56.69261142]
[1729779844630,56.69261142,174.86,174.73,20.0]
[1729779844832,4.24031822,174.84,174.83,56.69261142]
[1729779845252,4.23786575,174.84,174.82,56.69261142]
[1729779845650,0.12549,174.82,174.77,56.69261142]
[1729779845836,56.69261142,174.81,174.76,56.69261142]
[1729779846156,0.12549,174.8,174.76,56.69261142]
[1729779846352,24.153354,174.8,174.75,56.69261142]
[1729779846553,24.153354,174.8,174.76,56.69261142]
[1729779846938,29.874454,174.8,174.76,56.69261142]
[1729779847850,29.874454,174.8,174.78,56.69261142]
[1729779848039,24.153354,174.8,174.78,56.69261142]
[1729779848236,0.25098,174.8,174.78,56.69261142]
[1729779848943,0.25098,174.8,174.77,56.69261142]
[1729779849949,0.25098,174.8,174.76,56.69261142]
[1729779850160,5.97188,174.8,174.76,56.69261142]
[1729779851146,5.7204,174.82,174.79,56.69261142]
[1729779851439,5.7188,174.86,174.81,56.69261142]
[1729779851643,62.41111142,174.88,174.83,56.69261142]
[1729779851845,4.22865488,174.87,174.83,56.69261142]
[1729779852053,4.22865488,174.86,174.83,56.69261142]
[1729779852257,62.41111142,174.88,174.83,56.69261142]
[1729779852436,4.22694735,174.87,174.83,56.69261142]
[1729779852636,0.12549,174.87,174.83,56.69261142]
[1729779852855,0.37647,174.87,174.83,56.69261142]
[1729779853160,5.7185,174.88,174.83,56.69261142]
[1729779853943,0.12549,174.87,174.84,56.69261142]
[1729779854138,0.12549,174.87,174.83,56.69261142]
[1729779854338,0.25098,174.87,174.82,56.69261142]
[1729779854569,0.25098,174.86,174.82,56.69261142]
[1729779855554,0.25098,174.86,174.83,56.69261142]